Cogmind - Beta 17 @@@ ROGUE MODE // 2026.07.16 @ 15:23:21 Player: pinbox Result: Destroyed by UM-SEV(R) with Subdweller Machine Gun Performance ------------- Evolutions (0) 0 Regions Visited (2) 400 Robots Destroyed (27) 135 Value Destroyed (591) 591 Prototype IDs (14) 280 Alien Tech Used (0) 0 Bonus (0) 0 TOTAL SCORE: 1406 Bonus ------- None Cogmind --------- Core Integrity 0/250 Matter 212/300 Energy 100/100 System Corruption 0% Temperature Cool (0) Movement Rolling (110) Location -10/Subcaves Parts ------- > --- POWER (1) -------- (None) > --- PROPULSION (2) --- Subdweller Monowheel > --- UTILITY (2) ------ Medium Storage Unit Makeshift Light Armor Plating > --- WEAPON (2) ------- Subdweller Machine Gun Flail > --- INVENTORY (10) --- Meta Core Maxwheels Seismic Detector ECM Suite Subdweller Laser Subdweller Shrapnel Launcher Flail Peak State ------------ > --- POWER ------------ (None) > --- PROPULSION ------- Subdweller Monowheel > --- UTILITY ---------- Medium Storage Unit Makeshift Light Armor Plating > --- WEAPON ----------- Subdweller Machine Gun Flail > --- INVENTORY -------- Meta Core Maxwheels Seismic Detector ECM Suite Subdweller Laser Subdweller Shrapnel Launcher Flail [Rating: 16] Favorites ----------- Power Light Ion Engine Engine Light Ion Engine Propulsion Aluminum Leg Treads Light Treads Leg Aluminum Leg Wheel Subdweller Monowheel Utility Seismic Detector Device Seismic Detector Storage Medium Storage Unit Protection Makeshift Light Armor Plating Weapon Light Assault Rifle Energy Gun Medium Laser Ballistic Gun Light Assault Rifle Launcher Subdweller Shrapnel Launcher Impact Weapon Flail Build | -11 -10 -10 ------- Run | Yrd Mat Sub Slots Evolved . | . . . Power . | . . . Propulsion . | . . . Utility . | . . . Weapon . | . . . Parts Attached 22 | 7 9 6 Power 2 | 1 1 . Engine 2 | 1 1 . Core . | . . . Reactor . | . . . Propulsion 5 | 2 2 1 Treads 2 | 2 . . Leg 2 | . 2 . Wheel 1 | . . 1 Hover . | . . . Flight . | . . . Utility 5 | 2 2 1 Device 2 | 1 1 . Storage 2 | 1 1 . Processor . | . . . Hackware . | . . . Protection 1 | . . 1 Artifact . | . . . Weapon 10 | 2 4 4 Energy Gun 3 | 1 1 1 Energy Cannon . | . . . Ballistic Gun 4 | 1 2 1 Ballistic Cannon . | . . . Launcher 1 | . 1 . Special Weapon . | . . . Impact Weapon 2 | . . 2 Slashing Weapon . | . . . Piercing Weapon . | . . . Special Melee Weapon . | . . . Unidentified Prototypes . | . . . Parts Lost 9 | . 6 3 Power 2 | . 1 1 Propulsion 4 | . 2 2 Utility 1 | . 1 . Weapon 2 | . 2 . Highest Loss Streak 4 | . 4 3 To Critical Strikes 1 | . 1 . Average Backups 4 | . 3 5 Power . | . . . Propulsion . | . . . Utility . | . . 1 Weapon 2 | . 2 3 Tool/Special . | . . . Unused Backups 3 | . . 3 Power . | . . . Propulsion . | . . . Utility 1 | . . 1 Weapon 1 | . . 1 Tool/Special 1 | . . 1 Average Slot Usage (%) 96 | . 96 91 Engine 13 | . 13 11 Treads 5 | . 6 . Leg 21 | . 21 23 Device 12 | . 12 11 Storage 14 | . 14 14 Energy Gun 2 | . 2 . Ballistic Gun 23 | . 24 15 Impact Weapon 1 | . . 10 Peak Build Rating 16 | 7 8 16 Average Rating 7 | 5 6 8 On Entrance 4 | . 7 7 Avg Prop Armor Cover (%) . | . . . Naked Turns . | . . . Heaviest Build 23 | 14 23 21 Greatest Support 40 | 40 40 20 Greatest Overweight (x) 5 | . 3 5 Average Overweight (x) . | . . . Largest Inventory Capacity 10 | 8 10 10 Average Capacity 9 | 7 9 10 Most Carried 10 | 1 6 10 Average Carried 4 | . 3 5 Final Capacity 10 | 8 10 10 Final Carried 10 | 1 5 10 Class Distribution -------------------- 71% | Scavenger-Mutant 28% | Mutant Dominant Class ---------------- Scavenger-Mutant | -10/Materials Scavenger-Mutant | -10/Subcaves Resources | -11 -10 -10 ----------- Run | Yrd Mat Sub Matter Collected 606 | 282 212 112 Remotely . | . . . Salvage Created 706 | 116 553 37 Parts 44 | 8 33 3 Haulers Intercepted . | . . . Recyclers Shooed . | . . . Parts Field Recycled . | . . . Retrieved Matter . | . . . Parts Self-Destructed . | . . . Prevented . | . . . Parts Restored . | . . . Kills | -11 -10 -10 ------- Run | Yrd Mat Sub Combat Hostiles Destroyed 22 | . 19 3 Guns 19 | . 19 . AOE 3 | . . 3 Classes Destroyed 7 | 2 4 1 Tunneler 2 | 2 . . Recycler 1 | 1 . . Operator 1 | . 1 . Watcher 1 | . 1 . Swarmer 10 | . 10 . Grunt 9 | . 9 . Subdweller 3 | . . 3 Best Kill Streak 7 | 3 7 3 Combat Bots Only 7 | . 7 3 Max Kills in Single Turn 2 | 1 2 2 Gunslinging 1 | . 1 . Exploded 2 | . . 2 Melee . | . . . Uniques/NPCs Destroyed . | . . . Combat | -11 -10 -10 -------- Run | Yrd Mat Sub Hostile Shots Fired 120 | . 106 14 Missed 35 | . 32 3 Hits 85 | . 74 11 Projectile 85 | . 74 11 Critical Strikes 1 | . 1 . Damage Taken 1225 | . 715 510 Core 257 | . 79 178 Absorbed by Shields . | . . . Core Remaining (%) 100 | 100 . . Volleys Fired 81 | 4 70 7 Largest 2 | 2 2 2 Hottest 70 | 60 70 40 Shots Fired 126 | 8 109 9 Gun 120 | 8 108 4 Cannon . | . . . Launcher 6 | . 1 5 Special . | . . . Kinetic 91 | 4 78 9 Thermal 35 | 4 31 . Explosive . | . . . Electromagnetic . | . . . Robot Hit Streak 14 | 3 14 4 Robot Miss Streak 3 | 2 3 . Penetration Max . | . . . Secondary Targets 2 | . 2 . Max Gunslinging Chain 1 | . 1 . Shots Hit Robots 78 | 5 69 4 Core Hits 43 | 4 34 5 Critical Kills 1 | . 1 . Critical Parts Destroyed . | . . . Critical Strikes 3 | . 3 . Burn 2 | . 2 . Destroy 1 | . 1 . Melee Attacks 4 | . . 4 Impact 4 | . . 4 Slashing . | . . . Piercing . | . . . Sneak Attacks . | . . . Combat Hostiles . | . . . Follow-up Attacks . | . . . Damage Inflicted 1314 | 57 680 577 Guns 737 | 57 680 . Cannons . | . . . Explosions 521 | . . 521 Melee 56 | . . 56 Ramming . | . . . Kinetic 976 | 23 432 521 Thermal 282 | 34 248 . Explosive . | . . . Electromagnetic . | . . . Impact 56 | . . 56 Slashing . | . . . Piercing . | . . . Highest Corruption . | . . . Average Corruption . | . . . Corruption Purged . | . . . Corruption Blocked . | . . . Overload Shots . | . . . Overflow Damage 19 | . . 19 Projectiles . | . . . Explosions 13 | . . 13 Melee 6 | . . 6 Knockbacks . | . . . Impact . | . . . Kinetic . | . . . Secondary . | . . . Self-Inflicted Damage 164 | . 14 150 Shots 5 | . 1 4 Rammed . | . . . Targets Rammed . | . . . Kicked . | . . . Crushed . | . . . Highest Temperature 70 | . 70 . Average Temperature 20 | . 20 . Received Heat Transfer 183 | . 165 18 Siege Activations . | . . . Martial Activations . | . . . Shielding Activations . | . . . Robots Disrupted . | . . . Combat Hostiles . | . . . Robots Corrupted . | . . . Combat Hostiles . | . . . Parts Fried . | . . . Impact Corruptions 1 | . . 1 Robots Melted . | . . . Combat Hostiles . | . . . Parts Melted . | . . . Heat Transferred 951 | 75 876 . Parts Sabotaged . | . . . Parts Stolen . | . . . Parts Stripped . | . . . Power Chain Reactions . | . . . Alert | -11 -10 -10 ------- Run | Yrd Mat Sub Maximum Alert Level 1 | . 1 . Low Security (%) 98 | 100 98 . Level 1 1 | . 1 . Level 2 . | . . . Level 3 . | . . . Level 4 . | . . . Level 5 . | . . . High Security . | . . . Max Security . | . . . Peak Influence 213 | 5 213 . Initial . | . . . Average 39 | . 40 . Influence Increases 549 | 15 534 . Destroy 0b10 Robot/C 380 | . 380 . Destroy 0b10 Robot/NC 25 | 15 10 . Destroy Leader 62 | . 62 . Successful Hack 39 | . 39 . Destroy Structure 13 | . 13 . Lose Combat Pursuer 30 | . 30 . Influence Decreases 549 | 15 523 11 Entered New Map 6 | . . 6 Time Decay 483 | 15 463 5 Lost Part 60 | . 60 . Squads Dispatched 3 | . 3 . Investigation 1 | . 1 . Extermination . | . . . Reinforcement 2 | . 2 . Assault . | . . . Garrison . | . . . Intercept . | . . . Searches Triggered . | . . . Construction Impeded . | . . . Haulers Reinforced . | . . . Active Scanning Responses . | . . . Cargo Convoy Interrupts . | . . . Stealth | -11 -10 -10 --------- Run | Yrd Mat Sub Distress Signals 1 | . 1 . Communications Jammed . | . . . Distress Signals . | . . . Times Spotted 33 | . 29 4 Peak Tracking Total 7 | . 7 3 Tactical Retreats 1 | . 1 . Traps | -11 -10 -10 ------- Run | Yrd Mat Sub Traps Triggered 6 | . 3 3 Indirectly . | . . . Trap Hack Attempts . | . . . Triggered . | . . . Disarmed . | . . . Reprogrammed . | . . . Reused . | . . . Traps Extracted . | . . . Installed . | . . . Triggered . | . . . Machines | -11 -10 -10 ---------- Run | Yrd Mat Sub Machines Disabled 1 | . . 1 Max in Single Turn 1 | . . 1 Machines Repaired . | . . . Machines Dismantled . | . . . Machines Sabotaged . | . . . Overloaded Fab Kills . | . . . Hacking | -11 -10 -10 --------- Run | Yrd Mat Sub Machines Accessed 7 | . 6 1 Terminals 6 | . 6 . Fabricators . | . . . Repair Stations . | . . . Recycling Units . | . . . Scanalyzers . | . . . Garrison Access . | . . . Total Hacks 31 | . 22 9 Successful 23 | . 14 9 Failed 8 | . 8 . Catastrophic . | . . . Database Lockouts . | . . . Manual 22 | . 22 . Terminals 22 | . 22 . Fabricators . | . . . Repair Stations . | . . . Recycling Units . | . . . Scanalyzers . | . . . Garrison Access . | . . . Terminal Hacks 13 | . 4 9 Record 8 | . . 8 Terminal Index 1 | . 1 . Zone Layout 3 | . 3 . Proto ID Catalog 1 | . . 1 Fabricator Hacks . | . . . Repair Station Hacks . | . . . Recycling Unit Hacks . | . . . Scanalyzer . | . . . Garrison Access Hacks . | . . . Unauthorized Hacks 10 | . 10 . Terminals 10 | . 10 . Botnet 4 | . 4 . Skim 6 | . 6 . Fabricators . | . . . Repair Stations . | . . . Recycling Units . | . . . Scanalyzers . | . . . Garrison Access . | . . . Data Cores Recovered 1 | . 1 . Used . | . . . Hacking Detections 6 | . 6 . Full Trace Events . | . . . Feedback Events . | . . . Feedback Blocked . | . . . Robot Schematics Acquired . | . . . Robots Built . | . . . Authchips . | . . . Time . | . . . Total Robot Build Rating . | . . . Part Schematics Acquired . | . . . Parts Built . | . . . Authchips . | . . . Time . | . . . Total Part Build Rating . | . . . Part Studies Acquired . | . . . Parts Repaired . | . . . Time . | . . . Parts Recycled . | . . . Recycled Matter . | . . . Retrieved Matter . | . . . Retrieved Components . | . . . Parts Scanalyzed . | . . . Part Schematics Acquired . | . . . Parts Damaged . | . . . Bothacking | -11 -10 -10 ------------ Run | Yrd Mat Sub Used RIF Installer . | . . . Robots Hacked . | . . . Non-combat . | . . . Combat . | . . . Robot Hacks Applied . | . . . Relay Couplers Released . | . . . Fabnet Peak Effective % . | . . . Robots Rewired . | . . . Allies Hacked . | . . . Hacks Repelled . | . . . Allies | -11 -10 -10 -------- Run | Yrd Mat Sub Total Allies . | . . . Largest Group . | . . . Highest-Rated Group . | . . . Highest-Rated Ally . | . . . Total Orders . | . . . Ally Attacks . | . . . Total Damage . | . . . Kills . | . . . Allies Corrupted . | . . . Allies Melted . | . . . Intel | -11 -10 -10 ------- Run | Yrd Mat Sub Active Infowar (turns) 2795 | 23 2392 380 Seismic 2795 | 23 2392 380 Robot Analysis Total . | . . . Derelict Logs Recovered 1 | . . 1 Drone Launches . | . . . Drone Recoveries . | . . . Exploration | -11 -10 -10 ------------- Run | Yrd Mat Sub Turns Passed 3236 | 94 2674 468 Spaces Moved 905 | 48 576 281 Core 20 | 5 2 13 Treads 271 | 43 228 . Legs 592 | . 346 246 Wheels 22 | . . 22 Hover . | . . . Flight . | . . . Fastest Speed 50 | 50 120 110 Average Speed 135 | 148 137 128 Slowest Speed 300 | 160 200 300 Overloaded Moves . | . . . Propulsion Burnouts . | . . . Robots Hopped . | . . . Potential Cave-ins . | . . . Cave-ins Triggered . | . . . Exploration Rate (%) 30 | 3 71 18 Regions Visited 2 Branch Regions 1 Pre-discovered Areas 1 | . . 1 Known Exits Taken 1 | . 1 . Unknown Exits Taken 1 | 1 . . Scrap Searched 3 | . . 3 Spaces Dug . | . . . Terrain Destroyed 47 | . 12 35 Melee . | . . . Projectile . | . . . AOE 47 | . 12 35 Terrain Rammed . | . . . Walls Destroyed . | . . . Machines Disabled . | . . . Actions | -11 -10 -10 --------- Run | Yrd Mat Sub Total 2791 | 59 2359 373 Wait 1749 | . 1690 59 Move 903 | 47 575 281 Hop . | . . . Pick Up 10 | 1 5 4 Fast Attach 21 | 7 12 2 Attach 8 | . 3 5 Detach 9 | . 3 6 Swap . | . . . Drop 4 | . 1 3 Fire 81 | 4 70 7 Melee 4 | . . 4 Ram . | . . . Kick . | . . . Crush . | . . . Escape Stasis . | . . . Rewire 2 | . . 2 Trap . | . . . Miscellaneous . | . . . Route ------- -11/Scrapyard -10/Materials (discovered 6 exits: *Mat x3 / [*Min x2] / *Sub) -10/Subcaves (discovered 3 exits: *Mat x2 / [*Scr]) History --------- Turn | Location | Event 10 | -11/Scrapyard | Discovered new exit (range 16) 95 | -11/Scrapyard | Entered Materials 302 | -10/Materials | Build established: Mutant 595 | -10/Materials | Derelicts attacked the area 668 | -10/Materials | Discovered new exit (range 10) 738 | -10/Materials | Lost 4 parts (1p2n1u) 754 | -10/Materials | Destroyed 7 combat bots 817 | -10/Materials | Discovered new exit (range 9) 851 | -10/Materials | Discovered new exit (range 11) 902 | -10/Materials | Discovered new exit (range 18) 943 | -10/Materials | Learned location of 1 exit from Storage 974 | -10/Materials | Identified exit to Materials 994 | -10/Materials | Learned 4 Recycling zone layouts 1017 | -10/Materials | Identified exit to Subcaves 1038 | -10/Materials | Learned 2 Materials zone layouts 1042 | -10/Materials | Build established: Scavenger-Mutant 2769 | -10/Materials | Entered Subcaves 2769 | -10/Subcaves | Learned location of Recycling (-9) 2770 | -10/Subcaves | Approached by a straggling Scientist 2770 | -10/Subcaves | Identified exit to Materials 2839 | -10/Subcaves | Discovered exit to Materials (range 13) 3031 | -10/Subcaves | Visited 4L-MR0's lab 3050 | -10/Subcaves | Found Meta Core 3152 | -10/Subcaves | A Subdweller sparked back to life 3152 | -10/Subcaves | A Subdweller sparked back to life 3152 | -10/Subcaves | A Subdweller sparked back to life 3155 | -10/Subcaves | Core integrity fell below 50% 3162 | -10/Subcaves | Core integrity fell below 20% 3192 | -10/Subcaves | Lost 3 parts (1p2n) 3226 | -10/Subcaves | Found Maxwheels 3237 | -10/Subcaves | Destroyed by UM-SEV(R) with Subdweller Machine Gun Last Messages --------------- to move. 03152_ 6N-I34(R) creaks and sparks as it begins to move. 03154_ Aluminum Leg destroyed. 03155_ 3R-3FQ(R) affixes Scrap Shield Fragment to Scrap Shield. 03156_ Lgt. Ion Engine destroyed. 03159_ Destroyed Sub. Laser. 03161_ Aluminum Leg destroyed. 03161_ Destroyed Aluminum Leg. 03165_ 6N-I34(R) destroyed. 03165_ 3R-3FQ(R) destroyed. 03167_ U8-ERB(R) destroyed. 03202_ BZ-YMD(R) affixes Scrap Shield Fragment to Scrap Shield. 03202_ Acquired 37 matter. 03208_ Acquired Sub. Monowheel. 03212_ Acquired Sub. Machine Gun. 03226_ Dropped Sml. Laser. 03226_ Acquired Maxwheels. Map ----- +----------------------------------------------------+ | ?????????????????????????????????????????????????? | | ?????????????????????????????????????????????????? | | ?????????????????????????????????????????????????? | | ?????????????????????????????????????????????????? | | ?????????????????????????????????????????????????? | | ???????????????????####??????????????????????????? | | ??????????????????## ###???????????????????????? | | ??????????????????# #?????????????#???#####?# | | ??????????????????# #??????????? #?## ## | | ??????????????????? #####??????# ## ## | | ???????????????????? #?????? #? | | ???????????????????? #?????# #? | | ????????????????????? #?????# #? | | ?????????????????????# #?????# ## | | ????????????????###### #??????# | | ????????????????# #??????# | | ???????????????## #????????# | | ???????????????# #????????? | | ???????????????### #??????????????# | | ?????????????????# ### #???####??????## | | ?????##??????????## #?# ###### #??????# | | ?????# ???#???##### #### # #????### | | ?????# ### #### ## ## # ##??## | | ??????# # ## ## #### | | ?????## " ##; ##### ## # | | ?????#" # < @ # ## ## | | ?????#" "# & ######? | | ?????#" ;; & # ###### ##?????? | | ?????#" [ #### #### ##????###??????? | | ?????#"" & ###??###??####??????????????? | | ?????#" "" #???????????????????????????? | | ????#" & "# #???????????????????????????? | | ????#" #### ""#???????????????????????????? | | ????#" #??# ##???????????????????????????? | | ????## " """?"R #????????????????????????????? | | ?????#" """"" ##????????????????????????????? | | ?????## """## ##?????????????????????????????? | | ??????### ""### ##??????????????????????????????? | | ????????##$???# #???????????????????????????????? | | ?????????? ???# #???????????????????????????????? | | ??????????????# #???????????????????????????????? | | ?????????????? ???????????????????????????????? | | ?????????????? ???????????????????????????????? | | ?????????????? ???????????????????????????????? | | ??????????????# ???????????????????????????????? | | ?????????????????????????????????????????????????? | | ?????????????????????????????????????????????????? | | ?????????????????????????????????????????????????? | | ?????????????????????????????????????????????????? | | ?????????????????????????????????????????????????? | +----------------------------------------------------+ Best States ------------- Heat Dissipation 25 Energy Generation 10 Energy Capacity 250 Matter Stores 300 Matter Capacity 300 Sight Range 16 Terrain Scan Density 10 Armor Coverage 100 Evasion (%) 55 Recoil Reduction 2 Item Schematics ----------------- None Robot Schematics ------------------ None Fabricated ------------ Nothing Repaired ---------- Nothing Studied --------- None Alien Tech Used ----------------- None Achievements -------------- None Challenges ------------ None Game ------ Seed SapperSiegeMatrix Manual? 0 Play Time 00:12:22 Cumulative 64.3 hours Start 2026.07.16 @ 14:52:49 End 2026.07.16 @ 15:23:21 Sessions 1 Manual Loads 0 Difficulty Rogue Special Mode None Game No. 70 Rogue 70 Adventurer 0 Explorer 0 Win Type - Total 1 Types 1/0/0/0/0/0/0/0/0/0 Lore% 53 Gallery% 42 Achievement% 38 Wizard Run 0 Options --------- Layout 1 ASCII 0 Keyboard 1 Movement Numpad Keybinds 1 Fullscreen 2 Font 24/Smallcaps Map View 50x40 Zoom Use 0% Tactical HUD 1 Map Filters NONE Filters NONE Steam 1 RUN: 701b0441-ee5a-4a5a-832a-c0ffcfabef49